[Event "*** SCC Grand Prix: Titled Tuesday Blitz"]
[Site "Chess.com"]
[Date "2020.06.02"]
[Round "6"]
[White "GMTalks_Youtube"]
[Black "Arkady_Gitelson"]
[Result "1-0"]
[WhiteElo "2672"]
[BlackElo "2477"]
[TimeControl "180+1"]
[EndTime "11:09:18 PDT"]
[Termination "GMTalks_Youtube won on time"]

1. d4 {[%clk 0:03:00.9]} 1... Nf6 {[%clk 0:02:59]} 2. c4 {[%clk 0:03:01]} 2...
c5 {[%clk 0:02:59.2]} 3. d5 {[%clk 0:03:00.8]} 3... b5 {[%clk 0:02:59.3]} 4. Qc2
{[%clk 0:03:01]} 4... bxc4 {[%clk 0:02:58.8]} 5. e4 {[%clk 0:03:01.1]} 5... d6
{[%clk 0:02:59.4]} 6. Bxc4 {[%clk 0:03:01.1]} 6... g6 {[%clk 0:03:00]} 7. Nf3
{[%clk 0:03:01.2]} 7... Bg7 {[%clk 0:03:00.6]} 8. O-O {[%clk 0:03:01.4]} 8...
O-O {[%clk 0:03:01.3]} 9. Re1 {[%clk 0:02:59.6]} 9... a5 {[%clk 0:03:01.5]} 10.
Nc3 {[%clk 0:02:50.9]} 10... Ba6 {[%clk 0:03:01]} 11. b3 {[%clk 0:02:47.8]}
11... Bxc4 {[%clk 0:02:59.8]} 12. bxc4 {[%clk 0:02:47.5]} 12... Na6 {[%clk
0:02:54.6]} 13. a3 {[%clk 0:02:46.8]} 13... Rb8 {[%clk 0:02:43.2]} 14. Bd2
{[%clk 0:02:43.4]} 14... Nd7 {[%clk 0:02:38.5]} 15. Rab1 {[%clk 0:02:39.2]}
15... Ne5 {[%clk 0:02:34]} 16. Nxe5 {[%clk 0:02:38.7]} 16... Bxe5 {[%clk
0:02:34.9]} 17. Nb5 {[%clk 0:02:37.3]} 17... e6 {[%clk 0:02:19]} 18. f4 {[%clk
0:02:05]} 18... Bg7 {[%clk 0:02:15.2]} 19. dxe6 {[%clk 0:02:01.7]} 19... fxe6
{[%clk 0:02:13.8]} 20. Qd3 {[%clk 0:02:02.1]} 20... Qh4 {[%clk 0:01:13.5]} 21.
g3 {[%clk 0:01:58.1]} 21... Qh3 {[%clk 0:01:13.3]} 22. Bxa5 {[%clk 0:01:32.6]}
22... Rxf4 {[%clk 0:00:58.6]} 23. Rf1 {[%clk 0:01:12.8]} 23... Be5 {[%clk
0:00:38.8]} 24. Rxf4 {[%clk 0:01:07.7]} 24... Bxf4 {[%clk 0:00:38.9]} 25. Rf1
{[%clk 0:01:02.9]} 25... Be5 {[%clk 0:00:32.5]} 26. Bc3 {[%clk 0:00:58.4]} 26...
Qh5 {[%clk 0:00:26.1]} 27. Bxe5 {[%clk 0:00:55.3]} 27... Qxe5 {[%clk 0:00:27]}
28. Qf3 {[%clk 0:00:53.9]} 28... Qg7 {[%clk 0:00:23.5]} 29. Nxd6 {[%clk
0:00:52.3]} 29... Nc7 {[%clk 0:00:23.1]} 30. e5 {[%clk 0:00:49.5]} 30... Rd8
{[%clk 0:00:14.6]} 31. Qf4 {[%clk 0:00:39.9]} 31... g5 {[%clk 0:00:13.9]} 32.
Qe4 {[%clk 0:00:37.7]} 32... Ne8 {[%clk 0:00:13.1]} 33. Rf7 {[%clk 0:00:34.3]}
33... Qh6 {[%clk 0:00:09.9]} 34. Nxe8 {[%clk 0:00:29.3]} 34... Rxe8 {[%clk
0:00:10.8]} 35. Rf6 {[%clk 0:00:26]} 35... Qh3 {[%clk 0:00:09.6]} 36. Qe3 {[%clk
0:00:20]} 36... Rd8 {[%clk 0:00:09.2]} 37. Qxg5+ {[%clk 0:00:19.5]} 37... Kh8
{[%clk 0:00:08.7]} 38. Rf1 {[%clk 0:00:17.8]} 38... Re8 {[%clk 0:00:03.3]} 39.
Qf6+ {[%clk 0:00:16.8]} 39... Kg8 {[%clk 0:00:03.2]} 40. Qf7+ {[%clk 0:00:17.3]}
1-0

[Event "*** SCC Grand Prix: Titled Tuesday Blitz"]
[Site "Chess.com"]
[Date "2020.06.02"]
[Round "6"]
[White "ErikRonka"]
[Black "Lubov_Gordyk"]
[Result "0-1"]
[WhiteElo "2399"]
[BlackElo "2584"]
[TimeControl "180+1"]
[EndTime "11:09:18 PDT"]
[Termination "Lubov_Gordyk won by resignation"]

1. d4 {[%clk 0:03:00.9]} 1... c5 {[%clk 0:02:59.3]} 2. d5 {[%clk 0:02:44.4]}
2... f5 {[%clk 0:02:59.3]} 3. e4 {[%clk 0:02:42.8]} 3... fxe4 {[%clk 0:02:59.3]}
4. Nc3 {[%clk 0:02:43.3]} 4... Nf6 {[%clk 0:02:59.7]} 5. g4 {[%clk 0:02:43.1]}
5... e6 {[%clk 0:02:58.5]} 6. g5 {[%clk 0:02:40.4]} 6... Nxd5 {[%clk 0:02:57.7]}
7. Nxd5 {[%clk 0:02:40.9]} 7... exd5 {[%clk 0:02:58.1]} 8. Qxd5 {[%clk
0:02:41.6]} 8... Nc6 {[%clk 0:02:58]} 9. Qxe4+ {[%clk 0:02:34.2]} 9... Ne7
{[%clk 0:02:53.9]} 10. Nf3 {[%clk 0:02:27.1]} 10... d5 {[%clk 0:02:50.8]} 11.
Bb5+ {[%clk 0:02:23.9]} 11... Bd7 {[%clk 0:02:46.4]} 12. Bxd7+ {[%clk
0:02:19.7]} 12... Qxd7 {[%clk 0:02:45.7]} 13. Qe5 {[%clk 0:02:14.7]} 13... Qg4
{[%clk 0:02:36.7]} 14. Qe2 {[%clk 0:02:00.3]} 14... O-O-O {[%clk 0:02:24.2]} 15.
Bd2 {[%clk 0:01:56.9]} 15... Ng6 {[%clk 0:02:14.1]} 16. h3 {[%clk 0:01:55.2]}
16... Qe4 {[%clk 0:02:01.2]} 17. Qxe4 {[%clk 0:01:54]} 17... dxe4 {[%clk
0:02:01.1]} 18. Ng1 {[%clk 0:01:54.3]} 18... Bd6 {[%clk 0:01:52.7]} 19. Ne2
{[%clk 0:01:48.1]} 19... Rhf8 {[%clk 0:01:43.4]} 20. Be3 {[%clk 0:01:47.6]}
20... Be5 {[%clk 0:01:40.3]} 21. c3 {[%clk 0:01:29.8]} 21... b6 {[%clk
0:01:37.6]} 22. h4 {[%clk 0:01:29.6]} 22... Rd7 {[%clk 0:01:22]} 23. Rd1 {[%clk
0:01:25.9]} 23... Rxd1+ {[%clk 0:01:19.9]} 24. Kxd1 {[%clk 0:01:25.8]} 24... Kd7
{[%clk 0:01:20.2]} 25. a4 {[%clk 0:01:13.1]} 25... Ke6 {[%clk 0:01:18.1]} 26. a5
{[%clk 0:01:12.7]} 26... Ne7 {[%clk 0:01:06.3]} 27. Ng3 {[%clk 0:00:31.3]} 27...
Bxg3 {[%clk 0:00:52]} 28. fxg3 {[%clk 0:00:31.3]} 28... Rf3 {[%clk 0:00:50.6]}
29. Bf4 {[%clk 0:00:31.2]} 29... Nd5 {[%clk 0:00:45.1]} 30. Bb8 {[%clk
0:00:28.5]} 30... bxa5 {[%clk 0:00:43.9]} 31. Bxa7 {[%clk 0:00:25.4]} 31... c4
{[%clk 0:00:43.8]} 32. Bb8 {[%clk 0:00:23.2]} 32... Kf5 {[%clk 0:00:41.2]} 33.
Re1 {[%clk 0:00:13]} 33... e3 {[%clk 0:00:39.5]} 34. Ba7 {[%clk 0:00:13.1]}
34... Ke4 {[%clk 0:00:36.4]} 35. Kc2 {[%clk 0:00:13.4]} 35... Rf2+ {[%clk
0:00:34.7]} 36. Kb1 {[%clk 0:00:13.1]} 36... Rg2 {[%clk 0:00:30.5]} 37. Rd1
{[%clk 0:00:10.1]} 37... e2 {[%clk 0:00:20.7]} 38. Re1 {[%clk 0:00:10.2]} 38...
Kd3 {[%clk 0:00:19.6]} 39. Bb8 {[%clk 0:00:07]} 39... Ne3 {[%clk 0:00:19.6]} 40.
Kc1 {[%clk 0:00:06.7]} 40... Nc2 {[%clk 0:00:19.1]} 0-1

[Event "*** SCC Grand Prix: Titled Tuesday Blitz"]
[Site "Chess.com"]
[Date "2020.06.02"]
[Round "6"]
[White "Iljushin_Alexey"]
[Black "keepitcool9499"]
[Result "1-0"]
[WhiteElo "2663"]
[BlackElo "2476"]
[TimeControl "180+1"]
[EndTime "11:09:19 PDT"]
[Termination "Iljushin_Alexey won on time"]

1. d4 {[%clk 0:03:00.9]} 1... e6 {[%clk 0:03:00.9]} 2. c4 {[%clk 0:03:00.4]}
2... d5 {[%clk 0:03:01.8]} 3. Nf3 {[%clk 0:03:00]} 3... Nf6 {[%clk 0:03:01.4]}
4. Nc3 {[%clk 0:02:59.6]} 4... Be7 {[%clk 0:03:01.6]} 5. Bg5 {[%clk 0:02:58.9]}
5... O-O {[%clk 0:03:01.9]} 6. e3 {[%clk 0:02:59.1]} 6... c6 {[%clk 0:03:01.3]}
7. Rc1 {[%clk 0:02:58.1]} 7... Nbd7 {[%clk 0:03:01.7]} 8. a3 {[%clk 0:02:57.8]}
8... a6 {[%clk 0:03:01.5]} 9. Bd3 {[%clk 0:02:49.7]} 9... dxc4 {[%clk
0:03:01.3]} 10. Bxc4 {[%clk 0:02:49.2]} 10... b5 {[%clk 0:03:01.9]} 11. Ba2
{[%clk 0:02:49.4]} 11... Bb7 {[%clk 0:03:02.3]} 12. b4 {[%clk 0:02:33.7]} 12...
a5 {[%clk 0:02:54.1]} 13. Rb1 {[%clk 0:02:27]} 13... axb4 {[%clk 0:02:51.9]} 14.
axb4 {[%clk 0:02:26.8]} 14... h6 {[%clk 0:02:23.3]} 15. Bxf6 {[%clk 0:02:24.9]}
15... Nxf6 {[%clk 0:02:23.6]} 16. Ne5 {[%clk 0:02:17.4]} 16... Nd5 {[%clk
0:01:56.4]} 17. Bxd5 {[%clk 0:02:15]} 17... exd5 {[%clk 0:01:43.8]} 18. O-O
{[%clk 0:02:09.2]} 18... Qd6 {[%clk 0:01:38.4]} 19. Qc2 {[%clk 0:02:06]} 19...
Ra3 {[%clk 0:01:33.9]} 20. Rfc1 {[%clk 0:02:00.2]} 20... Rfa8 {[%clk 0:01:27.7]}
21. Nd3 {[%clk 0:01:54.1]} 21... Qg6 {[%clk 0:01:18.6]} 22. Nc5 {[%clk
0:01:18.4]} 22... Qxc2 {[%clk 0:01:15.2]} 23. Rxc2 {[%clk 0:01:18.8]} 23... Bxc5
{[%clk 0:01:14.4]} 24. dxc5 {[%clk 0:01:12.6]} 24... Bc8 {[%clk 0:01:13.9]} 25.
f3 {[%clk 0:01:07.9]} 25... Bf5 {[%clk 0:01:00.6]} 26. e4 {[%clk 0:01:07.8]}
26... dxe4 {[%clk 0:01:00.8]} 27. fxe4 {[%clk 0:01:08]} 27... Be6 {[%clk
0:00:58.5]} 28. Kf2 {[%clk 0:01:08.1]} 28... Bc4 {[%clk 0:00:56.9]} 29. Rbb2
{[%clk 0:01:04.7]} 29... Rd8 {[%clk 0:00:44.4]} 30. Nb1 {[%clk 0:01:03.7]} 30...
Ra1 {[%clk 0:00:37]} 31. Rd2 {[%clk 0:01:02]} 31... Rxd2+ {[%clk 0:00:30.3]} 32.
Nxd2 {[%clk 0:01:01.2]} 32... Be6 {[%clk 0:00:29]} 33. Nf3 {[%clk 0:00:59.8]}
33... Bc4 {[%clk 0:00:27.5]} 34. Ne5 {[%clk 0:00:58]} 34... Rf1+ {[%clk
0:00:25.2]} 35. Kg3 {[%clk 0:00:55.2]} 35... Re1 {[%clk 0:00:12]} 36. Nxc6
{[%clk 0:00:54.8]} 36... Rxe4 {[%clk 0:00:11.8]} 37. Na5 {[%clk 0:00:53]} 37...
Be6 {[%clk 0:00:09.3]} 38. c6 {[%clk 0:00:51.4]} 38... Rd4 {[%clk 0:00:06.8]}
39. Nb7 {[%clk 0:00:42.3]} 39... Rd3+ {[%clk 0:00:06.5]} 40. Kf4 {[%clk
0:00:41.3]} 40... Rc3 {[%clk 0:00:06.9]} 41. Nc5 {[%clk 0:00:41.4]} 41... Bc8
{[%clk 0:00:05.3]} 42. Ke5 {[%clk 0:00:41.2]} 42... Kf8 {[%clk 0:00:04.7]} 43.
Kd6 {[%clk 0:00:41.5]} 43... Ke8 {[%clk 0:00:02.9]} 44. Kc7 {[%clk 0:00:41.8]}
44... Bf5 {[%clk 0:00:03.2]} 45. Re2+ {[%clk 0:00:41.2]} 45... Kf8 {[%clk
0:00:03.5]} 46. Kb6 {[%clk 0:00:40.6]} 46... Rc4 {[%clk 0:00:02.5]} 47. Kxb5
{[%clk 0:00:39.4]} 47... Rc1 {[%clk 0:00:01.7]} 48. c7 {[%clk 0:00:38.9]} 1-0

[Event "*** SCC Grand Prix: Titled Tuesday Blitz"]
[Site "Chess.com"]
[Date "2020.06.02"]
[Round "6"]
[White "Forking_U"]
[Black "MasterKroket"]
[Result "0-1"]
[WhiteElo "2214"]
[BlackElo "2424"]
[TimeControl "180+1"]
[EndTime "11:09:19 PDT"]
[Termination "MasterKroket won on time"]

1. e4 {[%clk 0:02:58]} 1... c5 {[%clk 0:02:59.9]} 2. Nf3 {[%clk 0:02:58]} 2...
e6 {[%clk 0:03:00.5]} 3. d4 {[%clk 0:02:57.9]} 3... cxd4 {[%clk 0:03:01.4]} 4.
Nxd4 {[%clk 0:02:58.5]} 4... Nc6 {[%clk 0:03:02.2]} 5. Nc3 {[%clk 0:02:58.3]}
5... Qc7 {[%clk 0:03:02.9]} 6. f4 {[%clk 0:02:58.8]} 6... a6 {[%clk 0:03:03]} 7.
Nxc6 {[%clk 0:02:59.1]} 7... Qxc6 {[%clk 0:03:02.8]} 8. Bd3 {[%clk 0:02:59.4]}
8... b5 {[%clk 0:03:02.9]} 9. Qe2 {[%clk 0:02:59.5]} 9... Bb7 {[%clk 0:03:03.4]}
10. Bd2 {[%clk 0:02:59.8]} 10... Rc8 {[%clk 0:03:02.4]} 11. O-O-O {[%clk
0:02:57]} 11... Nf6 {[%clk 0:02:55.6]} 12. e5 {[%clk 0:02:19.6]} 12... Nd5
{[%clk 0:02:55.3]} 13. Ne4 {[%clk 0:02:10]} 13... Nb4 {[%clk 0:02:32.3]} 14.
Bxb4 {[%clk 0:01:52.5]} 14... Bxb4 {[%clk 0:02:31.5]} 15. Qg4 {[%clk 0:01:51.4]}
15... Kf8 {[%clk 0:02:25.2]} 16. Rhf1 {[%clk 0:01:15.7]} 16... h5 {[%clk
0:02:24.7]} 17. Qh3 {[%clk 0:01:07.5]} 17... g6 {[%clk 0:02:19.8]} 18. Nf6
{[%clk 0:01:05]} 18... Be7 {[%clk 0:02:16.7]} 19. Be4 {[%clk 0:01:04]} 19...
Qxe4 {[%clk 0:01:28.3]} 20. Nxe4 {[%clk 0:01:03.2]} 20... Bxe4 {[%clk
0:01:29.2]} 21. Rd2 {[%clk 0:00:47.8]} 21... Bb4 {[%clk 0:01:22]} 22. Re2 {[%clk
0:00:45.1]} 22... Bf5 {[%clk 0:01:19.7]} 23. Qb3 {[%clk 0:00:39.8]} 23... Be7
{[%clk 0:01:15]} 24. Rd1 {[%clk 0:00:36.5]} 24... Rc7 {[%clk 0:01:14.2]} 25. a4
{[%clk 0:00:23.6]} 25... b4 {[%clk 0:01:12.2]} 26. Rd6 {[%clk 0:00:18.7]} 26...
a5 {[%clk 0:01:01.4]} 27. Red2 {[%clk 0:00:16.4]} 27... Bxd6 {[%clk 0:00:57.7]}
28. exd6 {[%clk 0:00:16.2]} 28... Rc6 {[%clk 0:00:49.4]} 29. Qe3 {[%clk
0:00:14]} 29... Kg7 {[%clk 0:00:40.3]} 30. Qe5+ {[%clk 0:00:10.4]} 30... f6
{[%clk 0:00:36.3]} 31. Qxa5 {[%clk 0:00:10.5]} 31... b3 {[%clk 0:00:33.4]} 32.
c3 {[%clk 0:00:08.6]} 32... Re8 {[%clk 0:00:30.2]} 33. Qa7 {[%clk 0:00:07.3]}
33... e5 {[%clk 0:00:30.2]} 34. Re2 {[%clk 0:00:02]} 34... e4 {[%clk 0:00:30.3]}
35. g3 {[%clk 0:00:01.6]} 35... Rxd6 {[%clk 0:00:29.8]} 36. Rd2 {[%clk
0:00:01.3]} 36... Rxd2 {[%clk 0:00:22.3]} 37. Kxd2 {[%clk 0:00:02.2]} 37... e3+
{[%clk 0:00:22.5]} 38. Ke1 {[%clk 0:00:02.8]} 38... Bg4 {[%clk 0:00:18.7]} 39.
a5 {[%clk 0:00:02.7]} 39... Kh6 {[%clk 0:00:15.9]} 40. a6 {[%clk 0:00:02.9]}
40... Re6 {[%clk 0:00:16]} 0-1

[Event "*** SCC Grand Prix: Titled Tuesday Blitz"]
[Site "Chess.com"]
[Date "2020.06.02"]
[Round "6"]
[White "Mr_Sinigami"]
[Black "Kobalia"]
[Result "0-1"]
[WhiteElo "2597"]
[BlackElo "2772"]
[TimeControl "180+1"]
[EndTime "11:09:21 PDT"]
[Termination "Kobalia won by checkmate"]

1. Nf3 {[%clk 0:03:00.9]} 1... Nf6 {[%clk 0:02:56.6]} 2. c4 {[%clk 0:03:00.7]}
2... c6 {[%clk 0:02:55.5]} 3. Nc3 {[%clk 0:02:57.4]} 3... d5 {[%clk 0:02:56.4]}
4. e3 {[%clk 0:02:57.8]} 4... a6 {[%clk 0:02:55.6]} 5. d4 {[%clk 0:02:54]} 5...
e6 {[%clk 0:02:46.7]} 6. Bd3 {[%clk 0:02:46.2]} 6... dxc4 {[%clk 0:02:45.3]} 7.
Bxc4 {[%clk 0:02:45.8]} 7... b5 {[%clk 0:02:45.6]} 8. Be2 {[%clk 0:02:38.3]}
8... c5 {[%clk 0:02:45.7]} 9. O-O {[%clk 0:02:31.3]} 9... Bb7 {[%clk 0:02:45]}
10. b3 {[%clk 0:02:24.1]} 10... cxd4 {[%clk 0:02:36.9]} 11. Nxd4 {[%clk
0:02:18.8]} 11... Nbd7 {[%clk 0:02:35.2]} 12. Bb2 {[%clk 0:02:15.2]} 12... Bc5
{[%clk 0:02:31.7]} 13. Bf3 {[%clk 0:01:58.6]} 13... Bxf3 {[%clk 0:02:29.5]} 14.
Qxf3 {[%clk 0:01:59.5]} 14... Bxd4 {[%clk 0:02:26.3]} 15. exd4 {[%clk
0:02:00.4]} 15... b4 {[%clk 0:02:19.8]} 16. Na4 {[%clk 0:01:48.7]} 16... O-O
{[%clk 0:02:19]} 17. Rac1 {[%clk 0:01:33.1]} 17... Nd5 {[%clk 0:02:18.4]} 18.
Rc2 {[%clk 0:01:11.4]} 18... Qg5 {[%clk 0:02:12.6]} 19. Rfc1 {[%clk 0:01:06.6]}
19... h5 {[%clk 0:02:07.3]} 20. Nc5 {[%clk 0:01:02.7]} 20... N7f6 {[%clk
0:02:05.9]} 21. Nd3 {[%clk 0:00:57.7]} 21... a5 {[%clk 0:01:58.4]} 22. g3 {[%clk
0:00:54.7]} 22... a4 {[%clk 0:01:57.2]} 23. h4 {[%clk 0:00:49.4]} 23... Qh6
{[%clk 0:01:28.7]} 24. Rc4 {[%clk 0:00:37.1]} 24... a3 {[%clk 0:01:18.4]} 25.
Ba1 {[%clk 0:00:36.7]} 25... Rab8 {[%clk 0:01:18.7]} 26. Qe2 {[%clk 0:00:27.9]}
26... g5 {[%clk 0:00:57.2]} 27. hxg5 {[%clk 0:00:21.4]} 27... Qxg5 {[%clk
0:00:56.6]} 28. Kg2 {[%clk 0:00:12.2]} 28... h4 {[%clk 0:00:52.3]} 29. Rh1
{[%clk 0:00:08.2]} 29... hxg3 {[%clk 0:00:51.9]} 30. Rg1 {[%clk 0:00:07.8]}
30... Qh5 {[%clk 0:00:35.2]} 31. Kf1 {[%clk 0:00:05.5]} 31... Qxe2+ {[%clk
0:00:32.2]} 32. Kxe2 {[%clk 0:00:06.4]} 32... Kh7 {[%clk 0:00:27.4]} 33. Rxg3
{[%clk 0:00:06]} 33... Rg8 {[%clk 0:00:27.9]} 34. Ne5 {[%clk 0:00:04.6]} 34...
Rxg3 {[%clk 0:00:26.8]} 35. fxg3 {[%clk 0:00:05.5]} 35... Rg8 {[%clk 0:00:25.4]}
36. Kf3 {[%clk 0:00:04.4]} 36... Rg5 {[%clk 0:00:22.1]} 37. Nd3 {[%clk
0:00:04.5]} 37... Ne4 {[%clk 0:00:19.2]} 38. Kxe4 {[%clk 0:00:03.4]} 38... Rxg3
{[%clk 0:00:17.7]} 39. Ne5 {[%clk 0:00:02.9]} 39... Re3# {[%clk 0:00:17.3]} 0-1

[Event "*** SCC Grand Prix: Titled Tuesday Blitz"]
[Site "Chess.com"]
[Date "2020.06.02"]
[Round "6"]
[White "XxPetroffsxX"]
[Black "MilanJeremic"]
[Result "1/2-1/2"]
[WhiteElo "2058"]
[BlackElo "2239"]
[TimeControl "180+1"]
[EndTime "11:09:22 PDT"]
[Termination "Game drawn by repetition"]

1. e4 {[%clk 0:03:00.9]} 1... c6 {[%clk 0:02:38.1]} 2. Nc3 {[%clk 0:02:59.3]}
2... a6 {[%clk 0:02:36.1]} 3. d4 {[%clk 0:02:59]} 3... d5 {[%clk 0:02:35.3]} 4.
a4 {[%clk 0:02:53]} 4... g6 {[%clk 0:02:34.1]} 5. f4 {[%clk 0:02:51.6]} 5... h5
{[%clk 0:02:33.4]} 6. e5 {[%clk 0:02:51.4]} 6... Bg4 {[%clk 0:02:32]} 7. Be2
{[%clk 0:02:50.9]} 7... Bxe2 {[%clk 0:02:29.7]} 8. Qxe2 {[%clk 0:02:49.2]} 8...
e6 {[%clk 0:02:29.5]} 9. Nf3 {[%clk 0:02:47.5]} 9... Ne7 {[%clk 0:02:27]} 10.
Be3 {[%clk 0:02:43.5]} 10... Nf5 {[%clk 0:02:26.6]} 11. Bf2 {[%clk 0:02:42.5]}
11... Qb6 {[%clk 0:02:22.3]} 12. O-O-O {[%clk 0:02:16.5]} 12... Bb4 {[%clk
0:02:20]} 13. Qd3 {[%clk 0:02:14.8]} 13... Qa5 {[%clk 0:02:16.2]} 14. Be1 {[%clk
0:02:09.4]} 14... b5 {[%clk 0:02:12.8]} 15. Ng5 {[%clk 0:01:48.2]} 15... Bxc3
{[%clk 0:02:10.5]} 16. Bxc3 {[%clk 0:01:40.8]} 16... b4 {[%clk 0:02:10.1]} 17.
Be1 {[%clk 0:01:34.1]} 17... Qxa4 {[%clk 0:02:09.8]} 18. Kd2 {[%clk 0:01:30.8]}
18... Qb5 {[%clk 0:02:07.6]} 19. Ra1 {[%clk 0:01:25.2]} 19... Qxd3+ {[%clk
0:02:06.3]} 20. Kxd3 {[%clk 0:01:24.4]} 20... O-O {[%clk 0:02:02.8]} 21. Bxb4
{[%clk 0:01:23.5]} 21... Rc8 {[%clk 0:02:02.5]} 22. Bc5 {[%clk 0:01:21.4]} 22...
Nd7 {[%clk 0:02:00.8]} 23. b4 {[%clk 0:01:17.9]} 23... Rcb8 {[%clk 0:02:00]} 24.
c3 {[%clk 0:01:09]} 24... Nxc5+ {[%clk 0:01:59.6]} 25. dxc5 {[%clk 0:01:08.2]}
25... d4 {[%clk 0:01:57.6]} 26. Ne4 {[%clk 0:01:03.7]} 26... dxc3 {[%clk
0:01:56.9]} 27. Kxc3 {[%clk 0:01:02.7]} 27... Ne3 {[%clk 0:01:56.4]} 28. Rhb1
{[%clk 0:00:46.1]} 28... Nd5+ {[%clk 0:01:52.8]} 29. Kc4 {[%clk 0:00:43.5]}
29... Nxf4 {[%clk 0:01:51.3]} 30. g3 {[%clk 0:00:37.7]} 30... Nd5 {[%clk
0:01:48.4]} 31. Nd6 {[%clk 0:00:33.9]} 31... Ne3+ {[%clk 0:01:41.2]} 32. Kd3
{[%clk 0:00:29.5]} 32... Ng4 {[%clk 0:01:40.2]} 33. h3 {[%clk 0:00:27.1]} 33...
Nxe5+ {[%clk 0:01:39.6]} 34. Ke4 {[%clk 0:00:23.9]} 34... Nd7 {[%clk 0:01:38.9]}
35. g4 {[%clk 0:00:18.8]} 35... hxg4 {[%clk 0:01:37.5]} 36. hxg4 {[%clk
0:00:18]} 36... Kg7 {[%clk 0:01:37.3]} 37. g5 {[%clk 0:00:17.3]} 37... Rh8
{[%clk 0:01:32.5]} 38. Rh1 {[%clk 0:00:16.8]} 38... Rxh1 {[%clk 0:01:29.8]} 39.
Rxh1 {[%clk 0:00:15.6]} 39... Rb8 {[%clk 0:01:26.4]} 40. Rf1 {[%clk 0:00:14]}
40... Rxb4+ {[%clk 0:01:22.1]} 41. Kd3 {[%clk 0:00:13.8]} 41... Ne5+ {[%clk
0:01:21.7]} 42. Kc3 {[%clk 0:00:13.1]} 42... Rg4 {[%clk 0:01:17.7]} 43. Ne8+
{[%clk 0:00:11.9]} 43... Kf8 {[%clk 0:01:15.7]} 44. Nf6 {[%clk 0:00:10.8]} 44...
Rxg5 {[%clk 0:01:14.3]} 45. Nh7+ {[%clk 0:00:09.7]} 45... Ke7 {[%clk 0:01:13.1]}
46. Nxg5 {[%clk 0:00:09.9]} 46... f5 {[%clk 0:01:12.7]} 47. Kb4 {[%clk
0:00:08.5]} 47... Nd3+ {[%clk 0:01:10.4]} 48. Kc4 {[%clk 0:00:07.3]} 48... Ne5+
{[%clk 0:01:09]} 49. Kb4 {[%clk 0:00:06.7]} 49... Nd3+ {[%clk 0:01:08]} 50. Kc4
{[%clk 0:00:06.3]} 50... Ne5+ {[%clk 0:01:07.7]} 51. Kb4 {[%clk 0:00:05.9]}
1/2-1/2

[Event "*** SCC Grand Prix: Titled Tuesday Blitz"]
[Site "Chess.com"]
[Date "2020.06.02"]
[Round "6"]
[White "rugbyclub"]
[Black "MathiasWomacka"]
[Result "0-1"]
[WhiteElo "2118"]
[BlackElo "2381"]
[TimeControl "180+1"]
[EndTime "11:09:23 PDT"]
[Termination "MathiasWomacka won on time"]

1. c4 {[%clk 0:02:59.9]} 1... c5 {[%clk 0:02:59.8]} 2. g3 {[%clk 0:02:58.1]}
2... Nf6 {[%clk 0:02:59.6]} 3. Bg2 {[%clk 0:02:58.5]} 3... d5 {[%clk 0:02:59.6]}
4. cxd5 {[%clk 0:02:57.8]} 4... Nxd5 {[%clk 0:03:00.5]} 5. Nc3 {[%clk
0:02:57.6]} 5... Nc7 {[%clk 0:03:00.3]} 6. a3 {[%clk 0:02:57.6]} 6... e5 {[%clk
0:02:59.2]} 7. b4 {[%clk 0:02:53.5]} 7... Nc6 {[%clk 0:02:49.3]} 8. b5 {[%clk
0:02:42.9]} 8... Nd4 {[%clk 0:02:48.4]} 9. e3 {[%clk 0:02:41.1]} 9... Ndxb5
{[%clk 0:02:41.3]} 10. Nxb5 {[%clk 0:02:39.2]} 10... Nxb5 {[%clk 0:02:40.7]} 11.
Bb2 {[%clk 0:02:35.1]} 11... Bd6 {[%clk 0:02:36.5]} 12. a4 {[%clk 0:01:53.8]}
12... Nc7 {[%clk 0:02:34.6]} 13. Rb1 {[%clk 0:01:53.9]} 13... O-O {[%clk
0:02:32.4]} 14. d3 {[%clk 0:01:51.7]} 14... Rb8 {[%clk 0:02:28.6]} 15. Bc3
{[%clk 0:01:48.3]} 15... b6 {[%clk 0:02:24.7]} 16. Ne2 {[%clk 0:01:47.8]} 16...
Bb7 {[%clk 0:02:18.2]} 17. O-O {[%clk 0:01:47.9]} 17... Bxg2 {[%clk 0:02:17.1]}
18. Kxg2 {[%clk 0:01:48.3]} 18... Nd5 {[%clk 0:02:13.1]} 19. Ba1 {[%clk
0:01:43.2]} 19... Bc7 {[%clk 0:02:07]} 20. Qb3 {[%clk 0:01:42]} 20... Qd7 {[%clk
0:02:03.2]} 21. Rbd1 {[%clk 0:01:37.6]} 21... Rfd8 {[%clk 0:01:26.7]} 22. Kg1
{[%clk 0:01:06.8]} 22... Qh3 {[%clk 0:01:07.7]} 23. Qc4 {[%clk 0:01:01.8]} 23...
Nf6 {[%clk 0:01:04.1]} 24. f3 {[%clk 0:00:53.7]} 24... Nd5 {[%clk 0:01:00.8]}
25. Qc1 {[%clk 0:00:40.5]} 25... Qh6 {[%clk 0:00:55.3]} 26. f4 {[%clk
0:00:38.9]} 26... exf4 {[%clk 0:00:54.9]} 27. Nxf4 {[%clk 0:00:33]} 27... Nxf4
{[%clk 0:00:40.1]} 28. exf4 {[%clk 0:00:25]} 28... Rd5 {[%clk 0:00:29.4]} 29.
Qc3 {[%clk 0:00:21.7]} 29... Rbd8 {[%clk 0:00:22.2]} 30. Rfe1 {[%clk 0:00:17.7]}
30... Qg6 {[%clk 0:00:19.1]} 31. Qc4 {[%clk 0:00:13]} 31... h5 {[%clk 0:00:18]}
32. d4 {[%clk 0:00:09]} 32... cxd4 {[%clk 0:00:17.2]} 33. Qxc7 {[%clk
0:00:07.3]} 33... h4 {[%clk 0:00:16]} 34. Kf2 {[%clk 0:00:07.3]} 34... hxg3+
{[%clk 0:00:15.6]} 35. hxg3 {[%clk 0:00:08.2]} 35... d3 {[%clk 0:00:15.7]} 36.
Be5 {[%clk 0:00:04.6]} 36... d2 {[%clk 0:00:15.4]} 37. Re2 {[%clk 0:00:04.6]}
37... f6 {[%clk 0:00:15.7]} 38. Bb2 {[%clk 0:00:01.6]} 38... Rd3 {[%clk
0:00:15.8]} 0-1